bitfinex-derivatives/quotes_ETHF0:USTF0_20250730
["timestamp","ask_amount","ask_price","bid_price","bid_amount"]
[1753914301213,2.0756,3761.9,3761.8,2.0947]
[1753914301411,2.0101,3761.2,3761.1,3.2078]
[1753914301617,2.5419,3760.8,3760.7,3.2078]
[1753914301818,0.8924,3760.5,3760.4,1.7535]
[1753914302216,0.8924,3760.5,3760.4,2.2728]
[1753914302516,2.0101,3760.5,3760.4,2.2728]
[1753914302712,2.54202,3759.9,3759.8,0.39895209]
[1753914302912,2.94297706,3759.9,3759.8,0.39895209]
[1753914303415,6.68269706,3759.9,3759.8,0.39895209]
[1753914304009,6.15077706,3759.9,3759.8,0.39895209]
[1753914304220,23.4949,3759.9,3759.8,2.67175209]
[1753914304413,23.4949,3759.9,3759.8,2.27335209]
[1753914305118,23.4949,3759.9,3759.8,2.67175209]
[1753914307210,0.53189,3760.2,3759.9,1.362]
[1753914307514,0.53189,3760.2,3759.8,2.21815915]
[1753914307515,19.42269,3760.2,3760.1,2.2728]
[1753914307721,21.75486706,3760.2,3760.1,2.2728]
[1753914308810,2.54202,3759.9,3759.8,0.39895209]
[1753914309012,3.47489706,3759.9,3759.8,0.39895209]
[1753914309210,21.75689706,3759.9,3759.8,0.39895209]
[1753914309417,21.75689706,3759.9,3759.8,1.20955209]
[1753914309823,21.75689706,3759.9,3759.8,1.47465209]
[1753914310022,21.75689706,3759.9,3759.8,1.82905209]
[1753914310524,21.75689706,3759.9,3759.8,2.67175209]
[1753914310824,20.2921,3759.9,3759.8,2.67175209]
[1753914314126,19.78,3759.9,3759.8,2.67175209]
[1753914314322,0.53191,3760.1,3759.8,2.67175209]
[1753914314629,0.53191,3760.1,3760.0,2.2728]
[1753914314927,18.284,3760.2,3760.1,1.3551]
[1753914315121,0.53188,3760.3,3759.9,3.2078]
[1753914315321,18.81588,3760.3,3760.2,0.9108]
[1753914315521,19.07458,3760.3,3760.2,0.9108]
[1753914315725,20.54438,3760.3,3760.2,0.9108]
[1753914315928,20.54438,3760.3,3760.2,2.2728]
[1753914316229,20.82598,3760.3,3760.2,1.4301]
[1753914316425,0.53191,3760.0,3759.9,4.1186]
[1753914316626,21.75888706,3760.0,3759.9,0.2913]
[1753914317224,21.75888706,3760.0,3759.9,0.8106]
[1753914317826,21.75888706,3760.0,3759.9,1.4301]
[1753914318026,21.75888706,3760.0,3759.9,1.8744]
[1753914318227,19.70831,3760.0,3759.9,2.2728]
[1753914318429,19.42671,3760.0,3759.9,2.2728]
[1753914318628,20.03231,3760.0,3759.9,2.2728]
[1753914319935,20.82601,3760.0,3759.9,2.2728]
[1753914320737,19.42671,3760.0,3759.9,2.2728]
[1753914322137,20.03231,3760.0,3759.9,2.2728]
[1753914322339,20.82601,3760.0,3759.9,2.2728]
[1753914323039,20.82601,3760.0,3759.9,1.8744]
[1753914323641,21.75888706,3760.0,3759.9,1.8744]
[1753914324337,21.75888706,3760.0,3759.9,2.2728]
[1753914325334,21.24678706,3760.0,3759.8,0.39895209]
[1753914325632,2.0011,3759.9,3759.8,0.39895209]
[1753914328042,0.2587,3759.9,3759.8,0.39895209]
[1753914328239,2.0011,3759.9,3759.8,2.67175209]
[1753914328540,20.2851,3759.9,3759.8,2.67175209]
[1753914328741,20.2851,3759.9,3759.8,0.39895209]
[1753914333944,20.2851,3759.9,3759.8,2.09e-06]
[1753914334244,0.858,3758.8,3758.5,3.2078]
[1753914334443,3.49618706,3758.6,3758.5,4.1247]
[1753914334745,3.49618706,3758.6,3758.5,1.4456]
[1753914334946,3.49618706,3758.6,3758.5,2.2942]
[1753914336443,1.88881,3758.6,3758.5,2.2942]
[1753914336746,2.56331,3758.6,3758.5,2.2942]
[1753914338543,0.53211,3758.6,3758.5,2.2942]
[1753914338752,0.6991,3759.0,3758.0,4.14067706]
[1753914338753,3.2078,3759.3,3759.2,0.9169]
[1753914339049,1.48385,3759.0,3758.9,2.2942]
[1753914339245,21.78212706,3759.0,3758.9,2.2942]
[1753914339851,19.46465,3759.0,3758.9,2.2942]
[1753914340046,18.81805,3759.0,3758.9,2.2942]
[1753914340552,18.81705,3759.0,3758.9,2.2942]
[1753914341050,19.09435,3759.0,3758.8,3.2078]
[1753914341251,20.97722706,3759.0,3758.9,2.2942]
[1753914341651,19.09435,3759.0,3758.9,2.2942]
[1753914343350,20.54305,3759.0,3758.9,2.2942]
[1753914343748,20.04435,3759.0,3758.9,2.2942]
[1753914346342,0.53205,3759.0,3758.9,2.2942]
[1753914346547,18.81805,3759.0,3758.9,2.2942]
[1753914346754,0.53204,3759.1,3759.0,2.2942]
[1753914346946,3.2078,3759.7,3759.6,2.2942]
[1753914347257,0.80924,3759.8,3759.7,2.2942]
[1753914347551,2.18727516,3759.8,3759.7,2.2942]
[1753914347753,2.56757516,3759.8,3759.7,2.2942]
[1753914348346,3.80565222,3759.8,3759.7,0.9169]
[1753914348550,4.29965222,3759.8,3759.7,2.2942]
[1753914349652,3.49231706,3759.8,3759.7,2.2942]
[1753914357564,2.41661706,3759.8,3759.7,2.2942]
[1753914357764,2.11141706,3759.8,3759.7,2.2942]
[1753914358362,2.11141706,3759.8,3759.5,0.53197]
[1753914358363,1.39089,3760.1,3760.0,0.9169]
[1753914358560,21.77426706,3760.1,3760.0,2.2942]
[1753914360471,0.2544,3759.5,3759.4,1.4502]
[1753914360674,2.05655706,3759.5,3759.4,1.4502]
[1753914360870,3.14965706,3759.5,3759.4,1.4502]
[1753914361072,3.46125706,3759.5,3759.4,1.4502]
[1753914361275,3.46125706,3759.5,3759.4,2.2704]
[1753914361569,0.78638,3759.5,3759.4,2.2704]
[1753914361764,18.81397,3759.6,3759.4,2.80238]
[1753914361962,18.81397,3759.6,3759.5,1.3436]
[1753914362277,18.81397,3759.6,3759.5,2.2704]
[1753914363272,3.2078,3759.9,3759.8,2.27894]
[1753914363573,21.4888,3759.9,3759.8,2.2704]
[1753914364577,18.281,3759.9,3759.8,2.2704]
[1753914364777,0.78627,3760.3,3760.2,0.9268]
[1753914365075,18.81187,3760.3,3760.2,2.2704]
[1753914365769,18.81187,3760.3,3759.8,3.2078]
[1753914365770,0.53191,3760.0,3759.9,1.91502]
[1753914365967,2.52831,3760.0,3759.9,1.747]
[1753914366379,2.52831,3760.0,3759.9,2.2704]
[1753914366779,1.5113,3760.0,3759.9,2.2704]
[1753914367770,1.1997,3760.0,3759.9,2.2704]
[1753914367976,0.2544,3760.0,3759.9,2.2704]
[1753914370076,0.8624,3760.0,3759.9,2.2704]
[1753914370278,1.6848,3760.0,3759.9,2.2704]
[1753914370479,0.9033,3760.0,3759.9,2.2704]
[1753914370680,1.9964,3760.0,3759.9,2.2704]
[1753914371381,0.2544,3760.0,3759.9,2.2704]
[1753914371581,18.5344,3760.1,3760.0,2.80231]
[1753914372181,18.5344,3760.1,3760.0,2.2704]
[1753914372483,0.53186,3760.4,3760.3,2.2704]
[1753914372674,19.06426,3760.4,3760.3,2.2704]
[1753914373173,20.80626,3760.4,3760.3,2.2704]
[1753914373978,20.2744,3760.4,3760.3,2.2704]
[1753914376686,1.9964,3760.3,3760.2,2.27887]
[1753914377180,1.9964,3760.3,3760.2,2.80227]
[1753914379186,1.9964,3760.3,3760.2,2.2704]
[1753914383488,0.86918,3760.2,3760.1,5.1012]
[1753914383694,3.46115706,3760.2,3760.1,0.8289]
[1753914383889,2.52834,3759.8,3759.7,3.8772]
[1753914384195,21.73521706,3759.8,3759.7,1.636]
[1753914384591,21.73521706,3759.8,3759.7,2.2704]
[1753914384891,21.73421706,3759.8,3759.7,2.2704]
[1753914385491,21.73421706,3759.8,3759.7,1.8934]
[1753914386189,21.73421706,3759.8,3759.7,2.2704]
[1753914388397,21.73421706,3759.8,3759.7,1.4502]
[1753914388900,21.73421706,3759.8,3759.7,1.8975]
[1753914389396,21.73421706,3759.8,3759.7,2.2888]
[1753914391595,0.53201,3759.3,3759.2,2.2486]
[1753914391791,2.48031,3759.3,3759.2,2.2486]
[1753914391992,1.43814,3759.1,3759.0,1.7483]
[1753914392295,1.43814,3759.1,3759.0,2.2486]
[1753914392296,20.75334,3759.1,3759.0,2.2486]
[1753914392495,20.75334,3759.1,3759.0,0.9097]
[1753914392691,20.75334,3759.1,3759.0,2.2486]
[1753914393795,2.48038,3758.8,3758.7,5.4564]
[1753914394002,21.68525706,3758.8,3758.7,5.4564]
[1753914395098,20.75238,3758.8,3758.7,5.4564]
[1753914396503,21.68525706,3758.8,3758.7,1.8573]
[1753914396703,21.68525706,3758.8,3758.7,2.2486]
[1753914397197,0.2019,3758.3,3758.0,0.9476]
[1753914397398,1.9483,3758.0,3757.4,0.53227]
[1753914397597,0.9061,3757.5,3757.4,0.6406]
[1753914397803,0.6026,3757.5,3757.4,2.2486]
[1753914398700,0.2624,3757.5,3757.4,2.2486]
[1753914399206,0.53226,3757.6,3757.4,2.2486]
[1753914399406,0.79466,3757.6,3757.5,2.2486]
[1753914400106,0.2624,3757.6,3757.5,2.2486]
[1753914402603,1.9483,3757.4,3757.3,5.4564]
[1753914402807,3.4702,3758.1,3758.0,2.2486]
[1753914403004,18.80718,3758.1,3758.0,5.4564]
[1753914403205,18.275,3758.1,3758.0,5.98859]
[1753914403507,18.275,3758.1,3758.0,5.4564]
[1753914404104,18.80718,3758.1,3758.0,5.4564]
[1753914404905,18.275,3758.1,3758.0,5.4564]
[1753914405700,0.53213,3758.5,3758.4,2.2486]
[1753914406107,0.79449,3758.8,3758.7,0.9097]
[1753914406310,4.00227,3758.9,3758.8,2.2486]
[1753914406609,5.68817,3758.9,3758.8,1.41]
[1753914406808,5.68817,3758.9,3758.8,2.2486]
[1753914408008,5.68817,3758.9,3758.8,1.8573]
[1753914408203,5.68817,3758.9,3758.4,3.2078]
[1753914408204,0.53209,3758.7,3758.6,0.3913]
[1753914408413,1.43826,3758.2,3758.1,1.8573]
[1753914408610,3.41333706,3758.2,3758.1,2.2486]
[1753914409810,3.41333706,3758.2,3758.1,1.393]
[1753914410016,18.80814,3758.4,3758.1,2.2486]
[1753914410216,19.07054,3758.4,3758.3,2.2486]
[1753914411210,20.75644,3758.4,3758.3,2.2486]
[1753914411913,20.29024,3758.4,3758.3,2.2486]
[1753914412212,19.61264,3758.4,3758.3,2.2486]
[1753914412615,19.07054,3758.4,3758.3,2.2486]
[1753914413506,20.74074,3758.4,3758.3,2.2486]
[1753914413711,20.28994,3758.4,3758.3,2.2486]
[1753914413914,20.74074,3758.4,3758.3,2.2486]
[1753914414814,4.57796,3758.9,3758.8,2.2486]
[1753914415006,23.94746,3758.9,3758.8,2.2486]
[1753914418122,23.49666,3758.9,3758.8,2.2486]
[1753914418316,22.92096,3758.9,3758.8,2.2486]
[1753914418520,19.71316,3758.9,3758.8,2.2486]
[1753914420119,0.53206,3759.0,3758.8,2.2486]
[1753914420311,0.532,3759.4,3759.2,2.74401]
[1753914420518,0.532,3759.4,3759.2,4.61851]
[1753914420710,18.80599,3759.5,3759.3,0.532]
[1753914420919,18.5171,3759.5,3759.4,2.212]
[1753914421221,19.32475558,3759.5,3759.4,2.212]
[1753914422320,19.52485558,3759.5,3759.4,2.212]
[1753914422520,19.90145558,3759.5,3759.4,2.212]
[1753914423621,20.98945558,3759.5,3759.4,2.212]
[1753914423817,0.5793,3759.3,3759.2,3.7357]
[1753914424015,2.84067706,3759.3,3759.2,3.7357]
[1753914424215,21.11267706,3759.3,3759.2,3.2078]
[1753914424416,0.8362,3758.7,3758.6,1.5991]
[1753914424716,0.2431,3758.7,3758.6,2.212]
[1753914426126,0.2431,3759.2,3759.1,2.212]
[1753914426617,1.156,3759.2,3759.1,2.212]
[1753914427122,0.97519,3759.5,3759.4,2.212]
[1753914427423,21.51940964,3759.5,3759.4,2.212]
[1753914427624,3.24840964,3759.5,3759.4,2.212]
[1753914427918,21.51840964,3759.5,3759.4,2.212]
[1753914428120,20.70979,3759.5,3759.4,2.212]
[1753914429023,18.5131,3759.5,3759.4,5.4198]
[1753914429214,19.7301,3759.5,3759.4,5.4198]
[1753914429412,20.1778,3759.5,3759.4,5.4198]
[1753914429924,0.77504,3759.8,3759.7,1.7795]
[1753914430117,18.5131,3759.8,3759.7,2.212]
[1753914430727,1.10861,3760.0,3759.7,1.41064]
[1753914430914,1.10861,3760.0,3759.8,2.212]
[1753914430915,0.2431,3759.9,3759.8,2.212]
[1753914431118,1.9078,3759.9,3759.8,2.212]
[1753914433722,0.93287706,3760.1,3760.0,0.8787]
[1753914433723,1.17597706,3760.1,3760.0,0.8787]
[1753914433918,0.53189,3760.2,3760.1,1.8391]
[1753914434223,20.70669,3760.2,3760.1,2.212]
[1753914439127,20.70469,3760.2,3760.1,2.212]
[1753914439423,0.77502,3759.9,3759.8,3.2078]
[1753914439618,1.0244,3759.7,3759.5,0.8054]
[1753914439824,1.7077,3759.7,3759.6,0.8787]
[1753914440027,1.7077,3759.7,3759.6,1.6841]
[1753914440325,0.53199,3759.4,3759.3,3.2078]
[1753914440525,3.37266706,3759.4,3759.3,3.2078]
[1753914440828,3.37266706,3759.4,3759.3,3.7497]
[1753914441126,3.37266706,3759.4,3759.3,5.083]
[1753914441327,3.37266706,3759.4,3759.3,5.4198]
[1753914443525,3.37266706,3759.4,3759.3,5.0469]
[1753914443832,1.41543,3759.1,3759.0,2.212]
[1753914444023,2.43983,3759.1,3759.0,2.212]
[1753914445929,1.9078,3759.1,3759.0,2.212]
[1753914449032,0.2415,3759.5,3759.4,2.1489]
[1753914449339,0.2415,3759.8,3759.7,2.68085]
[1753914449638,1.5747,3759.8,3759.7,2.68085]
[1753914449937,0.53198,3759.5,3759.4,1.90089]
[1753914450132,0.53198,3759.5,3759.4,2.68089]
[1753914450133,1.8656,3759.5,3759.4,2.68089]
[1753914450634,5.0734,3759.9,3759.8,2.68084]
[1753914450836,1.34687,3760.3,3760.2,1.7206]
[1753914451035,20.93669297,3760.3,3760.2,2.1489]
[1753914452334,2.67369297,3760.3,3760.2,2.1489]
[1753914452537,1.91399297,3760.3,3760.2,2.1489]
[1753914453239,2.67369297,3760.3,3760.2,2.1489]
[1753914453440,3.20556297,3760.3,3760.2,2.1489]
[1753914453640,0.80809297,3760.3,3760.2,3.08177706]
[1753914453834,22.616,3760.6,3760.5,2.1489]
[1753914454039,23.42436665,3760.6,3760.5,2.68074]
[1753914454235,0.80836665,3760.6,3760.5,2.68074]
[1753914454542,0.80836665,3760.6,3760.5,6.82141706]
[1753914456141,1.2347,3761.1,3761.0,1.40817]
[1753914456338,2.67384921,3761.1,3761.0,2.68067]
[1753914459448,2.67384921,3761.1,3761.0,2.1489]
[1753914460345,1.8656,3761.1,3761.0,2.1489]
[1753914462541,1.22377706,3761.1,3760.6,0.4925]
[1753914462742,1.8656,3760.7,3760.6,0.82812]
[1753914462937,1.8656,3760.7,3760.6,1.84342]
[1753914463242,1.8656,3760.7,3760.6,2.68072]
[1753914464049,1.1452,3760.7,3760.6,2.68072]
[1753914465444,1.8656,3760.7,3760.6,2.1489]
[1753914467747,0.5318,3760.8,3760.2,2.32907]
[1753914467748,1.4361,3760.3,3760.2,2.32907]
[1753914467942,1.8656,3760.3,3760.2,2.1489]
[1753914468247,1.8656,3759.7,3759.6,0.53196]
[1753914468447,1.8656,3759.7,3759.6,2.68086]
[1753914469043,1.4361,3759.7,3759.6,2.68086]
[1753914469348,0.2415,3759.7,3759.6,2.68086]
[1753914470242,1.1452,3759.7,3759.6,2.68086]
[1753914470442,1.5747,3759.7,3759.6,2.68086]
[1753914470845,1.8656,3759.7,3759.6,2.68086]
[1753914471049,0.2415,3759.7,3759.6,2.68086]
[1753914474752,20.1206,3760.0,3759.4,3.2078]
[1753914474957,1.8656,3759.5,3759.4,5.88869]
[1753914475558,1.8656,3759.5,3759.4,3.8489]
[1753914475853,1.8656,3759.5,3759.4,5.3567]
[1753914479150,0.78615,3759.8,3759.7,1.7043]
[1753914479357,2.38495,3759.8,3759.7,2.1588]
[1753914479752,1.39766,3759.6,3759.5,0.4885]
[1753914480058,2.33053706,3759.6,3759.4,3.2078]
[1753914480358,1.853,3759.5,3759.4,3.2078]
[1753914480554,1.853,3759.5,3759.4,3.6963]
[1753914480858,1.853,3759.5,3759.4,5.3666]
[1753914481048,1.97336,3759.7,3759.6,1.6703]
[1753914481248,2.38496,3759.7,3759.6,2.1588]
[1753914481650,0.2542,3759.7,3759.6,2.1588]
[1753914482460,0.78613,3759.9,3759.8,0.8662]
[1753914482660,1.36133,3759.9,3759.8,2.1588]
[1753914483559,2.38203,3759.9,3759.8,2.1588]
[1753914486764,2.38207,3759.6,3759.5,2.1588]
[1753914486963,1.8501,3759.6,3759.5,2.1588]
[1753914488666,1.4409,3759.6,3759.5,2.1588]
[1753914488864,1.1495,3759.6,3759.5,2.1588]
[1753914489470,1.8501,3759.6,3759.5,2.1588]
[1753914489663,2.38208,3759.5,3759.4,3.2078]
[1753914489858,3.31495706,3759.5,3759.4,3.2078]
[1753914490169,1.8501,3759.5,3759.4,5.3666]
[1753914493168,1.1208,3759.5,3759.4,5.3666]
[1753914493968,0.8294,3759.5,3759.4,5.3666]
[1753914494169,1.2386,3759.5,3759.4,5.3666]
[1753914494471,1.5587,3759.5,3759.4,5.3666]
[1753914495567,1.1495,3759.5,3759.4,5.3666]
[1753914495769,3.783,3760.4,3759.5,0.4885]
[1753914495968,1.4409,3760.4,3760.3,2.1588]
[1753914496165,1.4409,3760.4,3759.9,4.074]
[1753914496166,1.07751,3760.0,3759.9,4.074]
[1753914496364,1.97281,3760.0,3759.9,4.5625]
[1753914496669,1.97281,3760.0,3758.9,1.33014]
[1753914496670,2.38206,3759.6,3759.5,1.3547]
[1753914496977,2.38206,3759.6,3759.5,2.1588]
[1753914500176,0.53196,3759.6,3759.5,2.1588]
[1753914500574,0.78616,3759.6,3759.5,2.1588]
[1753914500774,2.38206,3759.6,3759.5,2.1588]
[1753914501077,1.30716,3759.6,3759.5,2.1588]
[1753914501376,1.10626,3759.6,3759.5,2.1588]
[1753914501575,0.2542,3759.6,3759.5,2.1588]
[1753914502777,0.93287706,3760.1,3759.7,0.8662]
[1753914502977,1.97275,3760.4,3760.3,0.8662]
[1753914503275,3.19120267,3760.4,3760.3,2.1588]
[1753914503478,2.78200267,3760.4,3760.3,2.1588]
[1753914503873,3.19120267,3760.4,3760.3,2.1588]
[1753914506377,2.38195,3760.4,3760.3,2.1588]
[1753914506972,3.19135409,3760.4,3760.3,2.1588]
[1753914507173,2.38195,3760.4,3760.3,2.1588]
[1753914507973,1.30705,3760.4,3760.3,2.1588]
[1753914508280,0.2542,3760.4,3760.3,2.1588]
[1753914508482,0.78599,3760.8,3760.7,2.1588]
[1753914508772,2.47137183,3760.8,3760.7,0.8662]
[1753914508977,3.17507183,3760.8,3760.7,0.8662]
[1753914509177,3.17507183,3760.8,3760.7,2.1285]
[1753914509576,0.3097,3760.4,3760.3,3.2078]
[1753914509775,1.95659,3760.1,3760.0,1.673]
[1753914510081,2.35059,3760.1,3760.0,1.673]
[1753914510285,2.35059,3760.1,3760.0,2.1353]
[1753914510776,1.8187,3759.8,3759.7,2.66725]
[1753914511482,1.4247,3759.8,3759.7,2.66725]
[1753914511678,0.2388,3759.8,3759.7,2.66725]
[1753914513774,0.93287706,3760.4,3759.9,0.873]
[1753914514086,0.38,3764.7,3760.2,2.1353]
[1753914514087,1.95657,3760.3,3760.2,2.1353]
[1753914514279,2.35057,3760.3,3760.2,2.1353]
[1753914514684,0.53186,3760.4,3760.3,2.1353]
[1753914514880,0.2388,3760.8,3760.7,1.6884]
[1753914515185,0.53178,3761.0,3760.7,1.4048]
[1753914515384,0.80904167,3760.9,3760.8,2.1353]
[1753914516786,1.04784167,3760.9,3760.8,2.1353]
[1753914517485,1.8187,3760.7,3760.6,3.2078]
[1753914519184,1.8187,3760.7,3760.6,4.5431]
[1753914519586,1.8187,3760.7,3760.6,4.99]
[1753914519779,1.8187,3760.7,3760.6,5.3431]
[1753914525792,4.7168,3761.3,3761.2,0.873]
[1753914525989,24.08101317,3761.3,3761.2,2.1353]
[1753914526589,24.61273317,3761.3,3761.2,2.1353]
[1753914526791,23.80422,3761.3,3761.2,2.1353]
[1753914526997,5.55822,3761.3,3761.2,2.1353]
[1753914527198,3.4466,3761.3,3761.2,2.1353]
[1753914527494,0.2388,3761.3,3761.2,2.1353]
[1753914527696,0.2011,3761.6,3761.2,2.1353]
[1753914527697,0.5576,3761.6,3761.5,2.1353]
[1753914527888,1.04710142,3761.6,3761.5,2.1353]
[1753914528090,0.80830142,3761.6,3761.5,2.1353]
[1753914528290,0.38,3761.7,3761.6,1.40468]
[1753914528484,1.1881717,3761.7,3761.6,2.66698]
[1753914528793,0.38,3761.7,3761.6,2.66698]
[1753914533691,18.241,3762.7,3762.4,0.4623]
[1753914533897,1.39865,3762.5,3762.4,1.3353]
[1753914534097,2.5996197,3762.5,3762.4,2.1353]
[1753914534297,3.3945197,3762.5,3762.4,2.1353]
[1753914535109,2.58755,3762.5,3762.4,2.1353]
[1753914536409,2.19346,3763.2,3763.1,0.873]
[1753914536609,3.39388816,3763.2,3763.1,1.6884]
[1753914537108,3.39388816,3763.2,3763.1,2.1353]
[1753914537908,1.8749,3762.9,3762.8,2.1353]
[1753914538211,2.1935,3762.9,3762.8,5.3431]
[1753914538408,1.08,3762.9,3762.8,5.3431]
[1753914539411,0.5485,3762.9,3762.8,5.3431]
[1753914539804,0.53149,3763.0,3762.9,2.113]
[1753914540005,0.76699,3763.0,3762.9,2.113]
[1753914540407,2.61739,3763.0,3762.9,2.113]
[1753914541101,2.61739,3763.0,3762.3,3.2078]
[1753914541102,1.40351,3762.8,3762.7,1.6661]
[1753914541308,2.61741,3762.8,3762.7,1.6661]
[1753914541507,2.0859,3762.8,3762.7,2.113]
[1753914543016,2.61747,3762.4,3762.3,5.3208]
[1753914543218,2.0859,3762.4,3762.3,5.3208]
[1753914543406,2.0859,3762.7,3762.6,1.39214]
[1753914543612,2.0859,3762.7,3762.6,2.113]
[1753914543807,1.3348,3762.4,3762.3,4.0684]
[1753914544013,2.0859,3762.4,3762.3,4.0684]
[1753914544416,1.7039,3762.4,3762.3,5.3208]
[1753914544915,2.61747,3762.4,3762.3,5.3208]
[1753914545115,2.0859,3762.4,3762.3,5.3208]
[1753914545519,2.0859,3762.4,3762.3,4.0913]
[1753914545711,2.0859,3762.2,3762.1,2.6446]
[1753914546613,0.2355,3762.2,3762.1,3.57747706]
[1753914547008,0.9466,3762.2,3762.1,3.57747706]
[1753914547208,2.0859,3762.2,3762.1,3.57747706]
[1753914547716,1.3348,3762.2,3762.1,3.57747706]
[1753914548218,0.5429,3762.2,3762.1,3.57747706]
[1753914548417,0.2355,3762.2,3762.1,3.57747706]
[1753914548612,0.53153,3762.7,3762.4,0.4598]
[1753914548820,2.24834,3762.6,3762.5,1.3204]
[1753914549118,2.61744,3762.6,3762.5,1.3204]
[1753914549322,2.61747,3762.4,3762.3,4.8739]
[1753914549516,2.61747,3762.4,3762.3,5.3208]
[1753914549819,2.61747,3762.4,3762.3,2.113]
[1753914550422,2.0859,3762.4,3762.3,2.113]
[1753914550715,1.7039,3762.4,3762.3,5.3208]
[1753914551916,0.9866,3762.7,3762.6,0.562]
[1753914552116,1.7568,3762.7,3762.6,1.7673]
[1753914552422,2.0859,3762.7,3762.6,2.113]
[1753914553719,0.5429,3762.7,3762.6,2.113]
[1753914553921,1.3748,3762.7,3762.6,2.64454]
[1753914554122,1.0057,3762.7,3762.6,2.64454]
[1753914555118,1.3748,3762.7,3762.6,2.64454]
[1753914555319,1.7493,3762.7,3762.6,2.64454]
[1753914556621,2.0784,3762.7,3762.6,2.64454]
[1753914557327,1.7039,3762.7,3762.6,2.64454]
[1753914557827,1.0057,3762.7,3762.6,2.64454]
[1753914558023,0.6983,3762.9,3762.8,0.7707]
[1753914558230,2.0784,3762.9,3762.8,1.3921]
[1753914558521,2.0784,3762.9,3762.8,1.7378]
[1753914558727,2.0784,3762.9,3762.8,2.6445]
[1753914558928,2.60991,3762.8,3762.7,0.99132]
[1753914559329,2.60991,3762.8,3762.7,2.29882]
[1753914559628,2.60991,3762.8,3762.7,2.64452]
[1753914559629,2.0784,3762.8,3762.7,2.64452]
[1753914560727,2.0784,3762.8,3762.7,2.113]
[1753914561829,1.7039,3762.8,3762.7,2.113]
[1753914562526,0.53149,3763.0,3762.8,0.53151]
[1753914562731,2.60988,3763.1,3763.0,2.113]
[1753914563029,3.41805809,3763.1,3763.0,2.113]
[1753914563229,0.6983,3763.1,3763.0,3.04587706]
[1753914563425,1.22977,3763.1,3763.0,3.04587706]
[1753914563628,1.3748,3763.1,3763.0,3.04587706]
[1753914563831,1.7039,3763.1,3763.0,1.3304]
[1753914564031,2.0784,3763.1,3763.0,2.113]
[1753914564835,2.60991,3762.8,3762.7,0.4598]
[1753914565328,2.60991,3762.8,3762.7,1.3204]
[1753914565723,2.60991,3762.8,3762.7,0.5378]
[1753914565927,2.0784,3762.7,3762.6,2.64453]
[1753914568231,2.0784,3762.7,3762.6,2.19763]
[1753914568529,2.60997,3762.4,3762.3,1.3204]
[1753914570037,2.60997,3762.4,3762.3,1.6702]
[1753914570334,2.0784,3762.4,3762.3,2.64838]
[1753914570534,1.0057,3762.4,3762.3,2.64838]
[1753914570834,1.53727,3762.4,3762.3,2.64838]
[1753914571036,1.53727,3762.4,3762.3,2.1168]
[1753914571537,1.3381,3762.4,3762.3,2.1168]
[1753914572033,0.53156,3762.5,3762.4,0.53157]
[1753914572338,2.49871,3762.9,3762.8,2.0834]
[1753914572835,1.2772,3762.9,3762.8,2.0834]
[1753914573337,1.9672,3762.9,3762.8,2.0834]
[1753914576635,0.76716,3763.2,3763.1,1.6305]
[1753914576837,2.28518163,3763.2,3763.1,1.7336]
[1753914577034,3.30758163,3763.2,3763.1,2.0834]
[1753914590447,1.57608163,3763.2,3763.1,2.0834]
[1753914590652,2.00298163,3763.2,3763.1,2.0834]
[1753914590948,3.30758163,3763.2,3763.1,2.0834]
[1753914592850,0.53154,3762.6,3762.5,0.98445]
[1753914593044,0.53155,3762.5,3762.3,3.73938]
[1753914593245,1.22884,3762.7,3762.6,0.8341]
[1753914593445,1.74674,3762.7,3762.6,2.0834]
[1753914593852,2.49874,3762.7,3762.6,2.0834]
[1753914596750,1.80144,3762.7,3762.6,2.0834]
[1753914596950,1.04944,3762.7,3762.6,2.0834]
[1753914597151,0.53154,3762.7,3762.6,2.0834]
[1753914597547,1.80877,3762.4,3762.3,4.9414]
[1753914597745,1.80877,3762.4,3762.3,1.287]
[1753914597746,3.43164706,3762.4,3762.3,1.287]
[1753914598051,1.9672,3762.4,3762.3,2.0834]
[1753914600252,0.53163,3762.0,3761.9,3.2078]
[1753914600454,2.48506,3761.8,3761.7,2.0113]
[1753914601059,2.48508,3761.6,3761.5,2.0113]
[1753914601351,1.16,3761.0,3760.9,1.6842]
[1753914601554,0.8119,3761.2,3761.1,1.34605]
[1753914601751,0.93287706,3761.5,3761.1,1.34605]
[1753914601752,20.05787,3761.7,3761.6,0.8143]
[1753914601946,18.98357,3761.7,3761.6,2.0113]
[1753914602150,20.05787,3761.7,3761.6,2.0113]
[1753914602357,20.40597,3761.7,3761.6,2.0113]
[1753914602557,20.70507,3761.7,3761.6,2.0113]
[1753914603859,19.70087,3761.7,3761.6,2.0113]
[1753914604360,20.05787,3761.7,3761.6,2.0113]
[1753914604561,20.70507,3761.7,3761.6,2.0113]
[1753914605362,2.48513,3761.3,3761.2,2.0113]
[1753914605557,2.48513,3761.3,3761.2,1.2601]
[1753914606070,1.9534,3761.3,3761.2,2.0113]
[1753914607266,1.6053,3761.3,3761.2,2.0113]
[1753914607772,1.2483,3761.3,3761.2,2.0113]
[1753914607972,0.76358,3761.7,3761.6,0.8143]
[1753914608172,1.19998,3761.7,3761.6,2.0113]
[1753914608576,1.83788,3761.7,3761.6,2.0113]
[1753914609376,2.48508,3761.7,3761.6,2.0113]
[1753914609570,0.8119,3761.5,3761.4,1.2601]
[1753914609766,0.8119,3761.5,3761.4,2.0113]